[Event "IX Famalicao Open 2022"]
[Site "Vila Nova de Famalicao"]
[Date "2022.07.28"]
[Round "7.5"]
[White "Campora, Daniel H."]
[Black "Krishna C R G"]
[Result "0-1"]
[ECO "C07"]
[WhiteElo "2397"]
[BlackElo "2430"]
[Annotator "TA"]
[PlyCount "118"]
[EventDate "2022.07.25"]
[EventType "tourn"]
[EventCountry "POR"]
[SourceTitle "playchess.com"]
[Source "ChessBase"]
[SourceQuality "1"]
[TimeControl "5400+30"]

{[%evp 10,118,18,22,18,0,0,0,0,0,0,0,0,0,0,0,0,-6,0,-22,-6,-21,-33,-44,0,0,0,-6,-6,-44,0,0,0,0,0,-48,-16,-86,-81,-102,-84,-101,0,0,0,-120,-139,-131,-135,-120,-8,-171,-147,-234,-186,-214,-163,-159,-155,-212,-112,-172,-176,-220,-179,-309,-302,-315,-299,-327,-227,-314,-177,-329,-296,-268,-200,-355,-349,-360,-281,-256,-207,-420,-420,-408,-403,-581,-361,-318,-310,-302,-287,-333,-326,-495,-485,-430,-366,-358,-322,-671,-664,-621,-595,-723,-445,-773,-670,-670,-568]} 1. e4 {[%emt 0:00:02]} e6 {[%emt 0:00:03]} 2. d4 {[%emt 0:00:12]} d5 {[%emt 0:00:01]} 3. Nd2 {[%emt 0:00:14]} c5 {[%emt 0:00:23]} 4. exd5 {[%emt 0:00:23]} Qxd5 {[%emt 0:00:03]} 5. Ngf3 {[%emt 0:00:12]} cxd4 {[%emt 0:00:06]} 6. Bc4 {[%emt 0:00:09]} Qd7 {[%emt 0:00:07] C07: French Tarrasch: 3...c5, 4 Ngf3 and 4 exd5 Qxd5.} 7. Nb3 {[%emt 0:00:42]} Qc7 {[%emt 0:04:04]} 8. Qe2 {[%emt 0:02:28]} Bb4+ {[%emt 0:00:34] The position is equal.} 9. Bd2 {[%emt 0:01:01]} Bxd2+ {[%emt 0:00:13]} 10. Nbxd2 {[%emt 0:00:39]} Nc6 {[%emt 0:00:09]} 11. Nb3 Nf6 {[#]} 12. Nbxd4 $146 {[%emt 0:08:10]} ({Predecessor:} 12. O-O-O O-O 13. Nbxd4 Nxd4 14. Rxd4 Bd7 15. Rh4 Rfd8 16. Ne5 Be8 17. Bd3 g6 18. Re1 Qe7 19. Qe3 Nd7 20. Qh6 Nf8 21. Nf3 {½-½ (21) Nemeth,M (2473)-Tratar,M (2503) Bol 2013}) 12... Nxd4 {[%emt 0:08:02]} 13. Nxd4 {[%emt 0:00:05]} O-O {[%emt 0:00:06]} 14. Nb5 {[%emt 0:09:44]} Qc5 {[%emt 0:18:48]} 15. O-O-O {[%emt 0:02:43]} Bd7 {[%emt 0:00:10]} 16. Nc3 {[%emt 0:11:33] Prevents Nd5.} b5 {[%emt 0:18:50]} 17. Bxb5 {[%emt 0:06:28]} Bxb5 {[%emt 0:00:11]} 18. Nxb5 {[%emt 0:01:17]} Rab8 {[%emt 0:08:07]} 19. Nd4 {[%emt 0:00:29]} Qd5 {[%emt 0:00:36]} 20. c4 {[%emt 0:10:01]} Rfc8 {[%emt 0:03:16][%cal Bf8c8,Bc8c4,Bc4e4,Be4e2][%mdl 32]} 21. b3 {[%emt 0:00:25]} a5 {[%emt 0:01:13]} 22. Kb2 {[%emt 0:08:24]} (22. Qf3 $11 {was preferrable.}) 22... Rxc4 {[%emt 0:07:17]} 23. Nc2 {[%emt 0:00:05]} (23. Nf3 $1 $11 Qc6 24. Ne5) 23... Re4 $36 {[%emt 0:00:15][%mdl 2048] White is under strong pressure. Black is more active.} 24. Rxd5 {[%emt 0:05:39]} Rxe2 {[%emt 0:00:03]} 25. Rxa5 {[%emt 0:00:04]} Rc8 {[%emt 0:00:42]} (25... Rxf2 $17 {Threatens to win with ...Rc8.} 26. Kb1 Rxg2) 26. Rc1 $11 {[%emt 0:00:28]} Rxf2 {[%emt 0:12:48]} 27. Ra4 {[%emt 0:03:54]} (27. Kb1 $11 {was the only way to keep the balance.}) 27... Rxg2 $17 {[%emt 0:02:20]} 28. Rc4 {[%emt 0:02:08]} Rxc4 {[%emt 0:10:17]} 29. bxc4 {[%emt 0:00:07][%mdl 4096] Endgame KRN-KRN} Ne4 {[%emt 0:00:01]} ({Black should try} 29... Rxh2 $17 30. Kc3 Ne4+ 31. Kb4 Rh5) 30. Ka3 $2 {[%emt 0:02:10]} (30. a4 $1 $11 {and White has nothing to worry.}) 30... Kf8 {[%emt 0:03:47]} 31. Nd4 {[%emt 0:01:28]} (31. Kb4 $17) 31... Rd2 {[%emt 0:00:07]} 32. Nb3 {[%emt 0:00:43]} Rd8 {[%emt 0:00:01]} 33. c5 {[%emt 0:00:40] [#]} Ra8+ $1 {[%emt 0:00:04]} 34. Kb2 {[%emt 0:00:03] [#]} (34. Kb4 $17) 34... Ke7 {[%emt 0:00:07]} (34... e5 $1 $19 {...Ke7 is the strong threat.} 35. c6 Ke7) 35. Rc4 {[%emt 0:00:15]} (35. Nd4 $17) 35... f5 $19 {[%emt 0:00:42]} 36. a4 {[%emt 0:00:55]} g5 {[%emt 0:01:20]} 37. Ka3 {[%emt 0:01:32]} (37. Nd4 $142) 37... g4 {[%emt 0:00:19]} 38. Nd4 {[%emt 0:01:03]} h5 {[%emt 0:01:08][%cal Bh7h5,Bh5h4,Bh4g3,Bg3g2][%mdl 32]} 39. c6 {[%emt 0:00:27]} h4 {[%emt 0:01:06]} 40. Rc2 {[%emt 0:01:06]} g3 {[%emt 0:00:46]} (40... f4 $142 {And now ...f3 would win.} 41. c7 Kd7) 41. hxg3 $2 {[%emt 0:00:10]} (41. c7 {was necessary.} Rc8 42. Nf3) 41... hxg3 {[%emt 0:00:01]} 42. Kb4 {[%emt 0:02:18]} Rg8 {[%emt 0:01:38]} 43. c7 $2 {[%emt 0:00:22]} (43. a5) 43... Kd7 {[%emt 0:00:41]} 44. a5 {[%emt 0:00:28]} Nd6 {[%emt 0:00:30]} 45. Nf3 {[%emt 0:01:18]} g2 {[%emt 0:00:45]} 46. Rc1 {[%emt 0:00:05]} (46. Ng1) 46... Rg4+ {[%emt 0:00:22]} 47. Kc5 {[%emt 0:01:19]} Kxc7 {[%emt 0:00:06]} 48. a6 {[%emt 0:00:08]} (48. Ng1 $142) 48... Ra4 {[%emt 0:00:12]} 49. Rc2 {[%emt 0:00:12]} Rxa6 {[%emt 0:00:59] ( -> ...Rc6+)} 50. Rxg2 {[%emt 0:00:06]} Ne4+ {[%emt 0:00:18]} 51. Kd4 {[%emt 0:00:28]} Kd6 {[%emt 0:00:06] White must now prevent ...Ra4+.} 52. Rg8 {[%emt 0:00:18]} (52. Ne5 {is a better defense.}) 52... Ra4+ {[%emt 0:01:45]} 53. Ke3 {[%emt 0:00:06]} Nf6 {[%emt 0:00:07]} 54. Rd8+ {[%emt 0:00:14]} Ke7 {[%emt 0:00:02]} 55. Rd2 {[%emt 0:00:18]} (55. Rb8) 55... Ra3+ {[%emt 0:00:15] Black is clearly winning.} 56. Ke2 {[%emt 0:00:34]} Ng4 {[%emt 0:00:02] Inhibits Ne5.} 57. Nd4 {[%emt 0:00:28]} Kf6 {[%emt 0:00:09]} 58. Kf1 {[%emt 0:01:12]} (58. Nc2 $142 Rc3 59. Nb4) 58... e5 {[%emt 0:00:38]} 59. Nb5 {[%emt 0:00:16]} Rb3 {[%emt 0:00:58] Weighted Error Value: White=0.60/Black=0.35} 0-1

[Event "IX Famalicao Open 2022"]
[Site "Vila Nova de Famalicao"]
[Date "2022.07.28"]
[Round "7.6"]
[White "Das, Sayantan"]
[Black "Pina, Tiago"]
[Result "1-0"]
[ECO "B31"]
[WhiteElo "2449"]
[BlackElo "1897"]
[Annotator "TA"]
[PlyCount "47"]
[EventDate "2022.07.25"]
[EventType "tourn"]
[EventCountry "POR"]
[SourceTitle "playchess.com"]
[Source "ChessBase"]
[SourceQuality "1"]
[TimeControl "5400+30"]

{[%evp 18,47,11,0,20,0,0,-1,16,-13,16,11,16,10,24,30,31,30,93,87,166,168,159,158,182,191,169,168,761,647,814,763]} 1. e4 c5 2. Nf3 Nc6 3. Bb5 g6 4. c3 Nf6 5. Qe2 Bg7 6. d4 cxd4 7. cxd4 d5 8. e5 Ne4 9. O-O O-O 10. Nc3 Bg4 {[#] aiming for ...Nxd4. B31: Sicilian: 2...Nc6 3 Bb5 g6.} 11. Rd1 Nxc3 12. bxc3 f6 {The position is equal.} 13. e6 Qa5 14. Bxc6 bxc6 {[#]} (14... Qxc3 $2 {[#]} 15. Bxd5 $1 Qxa1 16. Bb2 Qxd1+ 17. Qxd1 $18) 15. h3 $146 ({Predecessor:} 15. Bd2 Qb5 16. Qe3 f5 17. Qf4 Bxf3 18. Qxf3 f4 19. Bc1 Qa6 20. a4 Rf6 21. Re1 {1-0 (44) Tokhirjonova,G (2350)-Vantika,A (2225) Abu Dhabi 2018}) 15... Bxf3 (15... Qxc3 $2 16. hxg4 Qxa1 17. Qc2 $18 (17. Ba3 Qc3 $15)) 16. Qxf3 Rab8 17. h4 Rfd8 (17... Qa4 $11) 18. h5 $16 {Black must now prevent Rd3.} c5 (18... g5 $16 {was necessary.}) 19. hxg6 $18 hxg6 20. Qd3 Kh7 21. Qh3+ Kg8 22. Rd3 cxd4 $2 (22... Qa4) 23. Rg3 {White wants to mate with Qg4.} f5 {Against Qg4} 24. Bh6 {Weighted Error Value: White=0.10 (very precise) /Black=0.29 (precise)} 1-0

[Event "IX Famalicao Open 2022"]
[Site "Vila Nova de Famalicao"]
[Date "2022.07.28"]
[Round "7.7"]
[White "Paulino, Jose"]
[Black "Dias, Ivo Rodrigues"]
[Result "0-1"]
[ECO "B58"]
[WhiteElo "2032"]
[BlackElo "2133"]
[Annotator "TA"]
[PlyCount "124"]
[EventDate "2022.07.25"]
[EventType "tourn"]
[EventCountry "POR"]
[SourceTitle "playchess.com"]
[Source "ChessBase"]
[SourceQuality "1"]
[TimeControl "5400+30"]

{[%evp 16,124,0,-1,0,-8,7,-35,-8,-47,5,-55,-40,-43,-32,-75,-94,-115,-61,-60,-58,-50,-38,-56,-45,-88,-31,-115,-124,-140,-128,-122,-83,-88,-86,-167,-156,-154,-93,-147,-160,-164,-127,-149,-127,-232,-208,-838,-212,-187,0,-106,-114,-104,-109,-114,-109,-92,-96,-96,0,-4,0,-17,0,0,0,0,0,0,0,0,0,0,0,0,0,0,0,0,0,0,0,0,0,0,0,0,0,-585,-571,-563,-563,-546,0,0,0,0,0,0,0,0,0,0,0,0,0,0,0,0,0]} 1. e4 c5 2. Nf3 d6 3. d4 cxd4 4. Nxd4 Nf6 5. Nc3 Nc6 6. Be2 e5 7. Nxc6 bxc6 8. O-O Be7 9. Bg5 O-O {B58: Classical Sicilian: 6 Be2.} 10. Qd2 Be6 {[#]} 11. Rfe1 $146 ({Predecessor:} 11. Rad1 Rb8 12. Bxf6 gxf6 13. b3 f5 14. f4 Qa5 15. fxe5 Qxe5 16. exf5 Bxf5 17. Bd3 Qd4+ 18. Kh1 Bxd3 19. Qxd3 Qxd3 20. Rxd3 d5 {½-½ (20) Liska,J (1885)-Kerdik,A (1978) Banska Stiavnica 2015}) 11... h6 {Black is slightly better.} 12. Bh4 (12. Bxf6 $5 Bxf6 13. Rad1 $15) 12... Qb8 (12... Rb8 $15) 13. Qd3 (13. b3 $11) 13... Rd8 $15 (13... Qxb2 $2 14. Rab1 Qa3 15. Nd5 $1 {[%mdl 512]} Qxd3 16. Nxe7+ Kh7 17. Bxd3 $18) 14. b3 d5 15. exd5 cxd5 16. Bg3 e4 (16... d4 $1 $17 {[%cal Rd4c3]} 17. Ne4 Nd5) 17. Qd2 Qb6 18. Na4 Qc6 19. c3 Nd7 {[%cal Bf6d7,Bd7c5,Bc5d3][%mdl 32]} 20. f3 Bf6 (20... Nb6 $17 21. Nxb6 axb6) 21. fxe4 (21. Bf2 $15) 21... dxe4 $17 22. Qc2 Nc5 23. Nb2 Rac8 {[%cal Oc5d3]} 24. Rad1 {Prevents Nd3.} Bf5 25. Rxd8+ (25. Bc4 $17 {might work better.}) 25... Rxd8 $19 ({Stronger than} 25... Bxd8 26. Rf1 Bg6 27. Bg4 $17) 26. Rd1 Rxd1+ ({Black should play} 26... Nd3 $1 27. Na4 (27. Nxd3 $2 exd3 28. Rxd3 Bxd3 $19) 27... Qd7) 27. Nxd1 (27. Qxd1 $142 Bxc3 28. Bf2) 27... Nd3 $1 $17 28. Bxd3 exd3 29. Qd2 Qe4 30. Bf4 {Against Bg5} (30. Bf2 $17 {is a better defense.}) 30... Qe2 $19 {aiming for ...Bh4.} 31. h3 $2 (31. Nb2) 31... Be4 $2 (31... Bh4 32. Nb2 Bf2+ 33. Kh2 Be1) 32. Nf2 {[#]} Bf5 (32... Bd8 $1 $19 {Strongly threatening ...f5.} 33. Qxe2 dxe2) 33. Qxe2 (33. Nd1 $1 $11 {keeps the balance.}) 33... dxe2 $11 {[%mdl 4096] Endgame KBB-KBN} 34. Bd2 Bg5 35. Be1 Be3 36. g4 Bb1 {0x0.00207be8dfd5dp-1022s more active pieces.} 37. a3 Bc1 (37... Ba2 $17 38. Kg2 Bxb3) 38. Kg2 Bxa3 39. Kf3 Bc2 {This bishop pair is nice.} 40. b4 Bd1 41. Nd3 Kf8 42. Nf4 Bc1 {[%cal Oc1d2]} 43. Nxe2 Bg5 44. Bf2 a6 45. Be3 Bh4 46. Bf2 Bf6 47. Bd4 Bxd4 48. cxd4 {KB-KN} Ke7 49. Ke3 Bxe2 50. Kxe2 {KP-KP} Kd6 (50... Ke6 $5 51. Kd3 g6 $11) 51. h4 Kd5 52. Ke3 {[%mdl 8192] [#]} (52. Kd3 $1 $11 {and White has nothing to worry.}) 52... Kc4 $1 $19 53. Ke4 Kxb4 54. Kd5 Kb5 (54... a5 $19 55. Kc6 a4) 55. Kd6 $1 $11 {The position is equal.} a5 {Threatens to win with ...a4.} 56. d5 $1 a4 {...a3 is the strong threat.} 57. Ke7 {Black must now prevent d6.} a3 (57... Kc4 $5 58. d6 a3 $18) 58. d6 {And now d7 would win.} a2 59. d7 a1=Q 60. d8=Q Qf6+ 61. Ke8 {Hoping for Qxf6.} Qxd8+ 62. Kxd8 h5 {[%mdl 32768] Weighted Error Value: White=0.44/Black=0.39. Loss on time!?} 0-1

[Event "IX Famalicao Open 2022"]
[Site "Vila Nova de Famalicao"]
[Date "2022.07.28"]
[Round "7.8"]
[White "Spraggett, Kevin"]
[Black "Anishka Vikram"]
[Result "1-0"]
[ECO "A14"]
[WhiteElo "2487"]
[BlackElo "1871"]
[Annotator "TA"]
[PlyCount "81"]
[EventDate "2022.07.25"]
[EventType "tourn"]
[EventCountry "POR"]
[SourceTitle "playchess.com"]
[Source "ChessBase"]
[SourceQuality "1"]
[TimeControl "5400+30"]

{[%evp 13,81,15,18,12,24,15,18,12,28,17,39,23,26,22,41,20,30,-62,-64,-75,-39,-68,-18,-30,-32,-39,-37,-47,-27,-34,-23,-40,-2,-17,-6,-17,-7,-34,-19,-37,-35,-38,-41,-62,0,-18,16,-5,88,89,118,68,167,160,280,287,256,240,493,489,1160,1153,1106,1081,2928,2136,29978,29979,29991,723]} 1. c4 e6 2. Nf3 Nf6 3. g3 Be7 4. Bg2 d5 5. O-O O-O 6. b3 b6 7. Bb2 c6 8. e3 {A14: English Opening: 1...e6 with b3 by White.} Nbd7 9. d3 Bb7 10. Qe2 {The position is equal.} c5 11. Nc3 Rc8 12. Rfd1 Re8 13. Rac1 {[#]} Bf8 $146 ({Predecessor:} 13... Qc7 14. cxd5 Nxd5 15. d4 Nxc3 16. Bxc3 cxd4 17. Bb2 Qb8 18. Nxd4 Bxg2 19. Kxg2 Bf6 {½-½ (19) Pribyl,J (2430)-Virovlansky,S (2380) Decin 1998}) 14. Rc2 Ba8 15. e4 (15. cxd5 $11 exd5 16. d4) 15... d4 $15 16. Nb1 Qc7 17. Bh3 {[%cal Ob3b4]} Qc6 ({Black should play} 17... Rcd8 $15) 18. Nbd2 e5 19. Bc1 Rcd8 20. Re1 Bb7 21. Nh4 Qc7 22. Rf1 Nb8 23. Rb2 Bc8 24. Bxc8 Qxc8 25. Ndf3 g6 26. Kh1 Nc6 27. Ng1 Bg7 28. a3 Rf8 (28... Qa6 $15) 29. b4 {[%cal Bb3b4,Bb4b5][%mdl 32]} Qc7 30. f4 Rb8 (30... exf4 $11 31. gxf4 Rfe8) 31. b5 $16 Ne7 32. f5 (32. Ngf3 $16) 32... Qd6 {[#]} ({Better is} 32... a6 $14) 33. g4 $1 $18 {[%cal Bg3g4,Bg4g5][%mdl 32]} h6 {[#]} (33... Nd7 $16 34. g5 Nc8) 34. g5 $1 hxg5 35. Bxg5 Nd7 $2 (35... Rb7 {was worth a try.} 36. Ngf3 Nh5) 36. fxg6 Nxg6 (36... fxg6 $142 37. Bxe7 Qxe7) 37. Nf5 Qe6 38. Qh5 Bh8 39. Rg2 {White wants to mate with Nh6+.} Rfe8 40. Nh6+ Kg7 41. Rxf7+ {Weighted Error Value: White=0.14 (very precise) /Black=0.53} (41. Nxf7 $142 Kg8 42. Bh6 Ndf8 43. Bxf8 Kxf8 44. Rxg6 Qxg6 45. Qxg6 Rb7 46. Nd6+ Bf6 47. Rxf6+ Ke7 48. Qf7+ Kd8 49. Qxe8+ Kc7 50. Qc8#) 1-0

[Event "IX Famalicao Open 2022"]
[Site "Vila Nova de Famalicao"]
[Date "2022.07.28"]
[Round "7.9"]
[White "Ribeiro, Gustavo"]
[Black "Dias, Paulo"]
[Result "0-1"]
[ECO "A06"]
[WhiteElo "1857"]
[BlackElo "2348"]
[Annotator "TA"]
[PlyCount "60"]
[EventDate "2022.07.25"]
[EventType "tourn"]
[EventCountry "POR"]
[SourceTitle "playchess.com"]
[Source "ChessBase"]
[SourceQuality "1"]
[TimeControl "5400+30"]

{[%evp 12,60,19,20,19,0,0,-25,-31,-33,-36,-79,-76,-72,-70,-125,-124,-123,-81,-81,-93,-102,-102,-111,-94,-110,-108,-95,-101,-100,-85,-124,-97,-101,-72,-75,-62,-74,-75,-78,-60,-116,-81,-97,-85,-95,-72,-222,-107,-225,722]} 1. Nf3 {[%emt 0:00:04]} d5 {[%emt 0:00:29]} 2. e3 {[%emt 0:00:08]} Nf6 {[%emt 0:01:19]} 3. c4 {[%emt 0:00:04]} g6 {[%emt 0:01:30]} 4. b3 {[%emt 0:00:18]} Bg7 {[%emt 0:00:50]} 5. Bb2 {[%emt 0:00:06]} c6 {[%emt 0:03:08][%cal Bc7c6,Bc6c5][%mdl 32]} 6. Nc3 {[%emt 0:03:28]} O-O {[%emt 0:00:55]} 7. d4 {[%emt 0:00:50]} Bf5 {[%emt 0:01:32] A11: English Opening: 1...c6.} 8. Nh4 {[%emt 0:00:57] [#]} Be6 $146 {[%emt 0:02:05][%cal Oc6c5]} ({Predecessor:} 8... Bc8 9. Be2 Nbd7 10. Nf3 Re8 11. O-O Nb6 12. Ne5 Nfd7 13. Nxf7 Kxf7 14. c5 e5 15. cxb6 axb6 16. dxe5 Nxe5 17. Qd2 Bf5 18. Rfd1 Qe7 19. Na4 {1-0 (40) Helmer,C (2207)-Hagenbeck Huebert,B (1749) Playchess.com INT 2020}) 9. Bd3 {[%emt 0:02:05]} c5 {[%emt 0:03:17] Black has an edge.} 10. Nf3 {[%emt 0:02:22]} Nc6 {[%emt 0:03:58][%cal Bb8c6,Bc6b4,Bb4d3][%mdl 32]} 11. Ne2 {[%emt 0:02:13]} dxc4 {[%emt 0:04:55]} 12. bxc4 {[%emt 0:00:18]} cxd4 {[%emt 0:01:06]} 13. exd4 {[%emt 0:00:36] [#]} (13. Nexd4 $15 Qa5+ 14. Qd2) 13... Bg4 $1 $17 {[%emt 0:01:43]} 14. d5 {[%emt 0:03:46]} Bxf3 {[%emt 0:01:08]} 15. gxf3 {[%emt 0:00:04]} Nb4 {[%emt 0:03:11][%cal Ob7b5]} 16. Bc3 {[%emt 0:03:18]} Nxd3+ {[%emt 0:03:51]} 17. Qxd3 {[%emt 0:00:05]} Rc8 {[%emt 0:00:40]} 18. O-O {[%emt 0:02:04]} Qc7 {[%emt 0:03:20]} 19. Bxf6 {[%emt 0:01:09]} Bxf6 {[%emt 0:00:09]} 20. Rac1 {[%emt 0:00:06]} b6 {[%emt 0:01:17]} 21. Ng3 {[%emt 0:05:15]} Qf4 {[%emt 0:05:21]} 22. Qe4 {[%emt 0:16:35]} Qh6 {[%emt 0:03:03]} 23. Rc2 {[%emt 0:03:13]} Rc5 {[%emt 0:01:09]} 24. Rb1 {[%emt 0:01:46]} Rfc8 {[%emt 0:06:02]} 25. Rb5 {[%emt 0:09:16]} R5c7 {[%emt 0:00:44]} 26. Rb4 {[%emt 0:07:53]} (26. a4 $15) 26... Qg5 {[%emt 0:04:57]} 27. f4 {[%emt 0:12:21]} Qg4 {[%emt 0:04:14]} 28. Kg2 {[%emt 0:07:16]} Kg7 {[%emt 0:12:14] Black is more active.} 29. Qd3 {[%emt 0:03:20]} (29. Rb1 $17 {was necessary.}) 29... Rc5 {[%emt 0:05:01]} (29... Qxf4 $19 {is more deadly. aiming for ...Be5.} 30. Qe4 Qd6) 30. f3 {[%emt 0:01:55]} (30. f5 $17) 30... Rxd5 $4 {[%emt 0:00:56][%mdl 40960] Weighted Error Value: White=0.23 (precise) /Black=0.13 (very precise) . Loss on time!?} 0-1

[Event "IX Famalicao Open 2022"]
[Site "Vila Nova de Famalicao"]
[Date "2022.07.28"]
[Round "7.10"]
[White "Borges, Guilherme Deola"]
[Black "Perez Estevez, Sergio"]
[Result "1-0"]
[ECO "D25"]
[WhiteElo "2185"]
[BlackElo "1765"]
[Annotator "TA"]
[PlyCount "31"]
[EventDate "2022.07.25"]
[EventType "tourn"]
[EventCountry "POR"]
[SourceTitle "playchess.com"]
[Source "ChessBase"]
[SourceQuality "1"]
[TimeControl "5400+30"]

{[%evp 9,31,34,67,45,56,15,15,23,17,10,56,47,81,50,51,50,56,0,0,0,0,0,61,26]} 1. d4 {[%emt 0:00:03]} d5 {[%emt 0:00:07][%cal Bd7d5,Bd5c4][%mdl 32]} 2. c4 {[%emt 0:00:11]} dxc4 {[%emt 0:00:04]} 3. Nf3 {[%emt 0:00:20]} Nf6 {[%emt 0:00:55]} 4. e3 {[%emt 0:00:28]} b5 {[%emt 0:00:33]} 5. a4 {[%emt 0:01:05]} c6 {[%emt 0:00:08]} 6. b3 {[%emt 0:00:30] D25: Queen's Gambit Accepted: 4 e3: sidelines and 4...Bg4.} e6 {[%emt 0:00:27]} 7. bxc4 {[%emt 0:09:33]} bxc4 {[%emt 0:00:10]} 8. Bxc4 {[%emt 0:01:51] The position is equal.} Bb4+ 9. Bd2 {[%emt 0:03:02] [#]} Bxd2+ $146 {[%emt 0:02:08]} (9... c5 $11) ({Predecessor:} 9... c5 10. Bxb4 cxb4 11. a5 O-O 12. O-O Nc6 13. Qa4 Bd7 14. Bb5 Qe8 15. Nbd2 Rb8 {1-0 (48) Bocharov,D (2517)-Demchenko,A (2655) Chess.com INT 2021}) 10. Nbxd2 $14 {[%emt 0:00:36]} O-O 11. O-O {[%emt 0:07:29]} Nbd7 {[%emt 0:01:24]} 12. Ne5 {[%emt 0:09:23]} Bb7 {[%emt 0:01:23]} 13. f4 {[%emt 0:21:29]} ({Better is} 13. Nxd7 $14 Nxd7 14. Bd3) 13... c5 $11 {[%emt 0:00:55]} 14. f5 {[%emt 0:02:57]} Nxe5 {[%emt 0:01:52]} 15. dxe5 {[%emt 0:00:12]} Nd5 {[%emt 0:00:20]} (15... Ng4 $11 16. fxe6 (16. Qxg4 Qxd2 17. fxe6 Qxe3+ 18. Kh1 fxe6 $11) 16... Nxe5) 16. Ra3 {[%emt 0:06:19][%mdl 32768] Weighted Error Value: White=0.19 (very precise) /Black=0.23 (precise) . Loss on time!?} 1-0

[Event "IX Famalicao Open 2022"]
[Site "Vila Nova de Famalicao"]
[Date "2022.07.28"]
[Round "7.11"]
[White "Goncalves, Lucas Jordao"]
[Black "Akshit Kumar J"]
[Result "1-0"]
[ECO "B90"]
[WhiteElo "1813"]
[BlackElo "2103"]
[Annotator "TA"]
[PlyCount "63"]
[EventDate "2022.07.25"]
[EventType "tourn"]
[EventCountry "POR"]
[SourceTitle "playchess.com"]
[Source "ChessBase"]
[SourceQuality "1"]
[TimeControl "5400+30"]

{[%evp 14,63,52,29,75,52,50,10,35,0,0,0,0,0,0,0,0,0,0,0,0,-122,-112,-120,-127,-115,-94,-120,-129,-245,-271,-464,-245,-497,-229,-252,-262,-339,-341,-814,-819,-858,-871,-1066,-1065,-1061,-1060,-1077,-1069,-1129,-1058,-1028]} 1. e4 c5 2. Nf3 d6 3. d4 cxd4 4. Nxd4 Nf6 5. Nc3 a6 6. Be3 g6 7. Be2 Bg7 8. f3 Nbd7 {B70: Sicilian Dragon: 6 g3 and 6 Be2 (without a later Be3).} (8... O-O $11) 9. Qd2 {White is more active.} h5 10. h4 b5 {The position is equal.} 11. a3 (11. a4 $5 {[%cal Ra4b5]}) 11... Bb7 12. O-O-O Rc8 13. Kb1 Ne5 14. Bg5 Qb6 15. Be3 {[%cal Od4e6]} Qc7 16. Bg5 Qb6 {[#]} 17. f4 $146 (17. Qe3 $11 {remains equal.}) ({Predecessor:} 17. Rhe1 O-O 18. Bh6 Bxh6 19. Qxh6 b4 20. axb4 Qxb4 21. Nb3 Rxc3 22. bxc3 Qxc3 23. Qd2 Qc7 24. Qa5 {0-1 (39) Li,B (2237)-Izoria,Z (2604) Las Vegas 2016}) 17... Nc4 $17 18. Bxc4 Rxc4 19. e5 {[#]} O-O $1 20. exf6 (20. Rhe1 dxe5) 20... exf6 21. Nde2 fxg5 $19 22. hxg5 $2 (22. Qxd6 Qxd6 23. Rxd6) 22... Bxg2 {A strong pair of Bishops.} (22... b4 $142 23. axb4 Rxb4) 23. Rh2 $2 (23. Nd5 {only move.} Qc5 24. Ne7+ Kh8 25. Ng3 Bxh1 26. Rxh1) 23... Bf3 (23... b4 $142 24. axb4 {[#]} Rxb4 $1) 24. Nd5 Qc5 25. Ne7+ Kh7 {...Re8 is the strong threat.} 26. f5 $2 (26. Rh3 Be4 27. Nc3 Bxc3 28. Rxc3) 26... Qe5 {[%csl Gg7][%cal Re5b2] Black is clearly winning.} 27. f6 Qxh2 28. Re1 Bh8 {Hoping for ...Re4.} 29. Qe3 Be4 30. Nc3 Bxc2+ 31. Ka2 Qf4 {Threatens to win with ...Qxe3.} 32. Ned5 {[%mdl 32768] Weighted Error Value: White=0.70/Black=0.29 (precise) . Loss on time!?} 1-0